[Event "Titled Tuesday Blitz April 11 Early 2023"]
[White "Zhigalko, Sergei"]
[Black "Poliakova, Varvara"]
[WhiteFideId "13502956"]
[BlackFideId "13518313"]
[WhiteElo "2626"]
[BlackElo "2075"]
[Result "1-0"]
[Round "04"]
[TimeControl "180+2"]
[Date "2023.04.11"]
[WhiteClock "0:00:05"]
[BlackClock "0:00:06"]

1. e4 {[%clk 0:03:00]}  e5 {[%clk 0:02:58]} 2. Nf3 {[%clk 0:03:01]}  Nc6 {[%clk 0:02:58]} 3. Bc4 {[%clk 0:03:00]}  Bc5 {[%clk 0:02:57]} 4. b4 {[%clk 0:03:00]}  Bxb4 {[%clk 0:02:41]} 5. c3 {[%clk 0:03:00]}  Ba5 {[%clk 0:02:42]} 6. d4 {[%clk 0:03:00]}  exd4 {[%clk 0:02:40]} 7. O-O {[%clk 0:03:00]}  Nf6 {[%clk 0:02:37]} 8. Ba3 {[%clk 0:02:50]}  d6 {[%clk 0:02:35]} 9. e5 {[%clk 0:02:48]}  Ne4 {[%clk 0:02:24]} 10. exd6 {[%clk 0:02:44]}  cxd6 {[%clk 0:02:21]} 11. Re1 {[%clk 0:02:44]}  O-O {[%clk 0:02:03]} 12. Rxe4 {[%clk 0:02:40]}  d5 {[%clk 0:02:03]} 13. Rh4 {[%clk 0:02:30]}  dxc4 {[%clk 0:02:01]} 14. Bxf8 {[%clk 0:02:30]}  Qxf8 {[%clk 0:01:58]} 15. Nxd4 {[%clk 0:02:22]}  Nxd4 {[%clk 0:01:52]} 16. Rxd4 {[%clk 0:02:18]}  Be6 {[%clk 0:01:48]} 17. h3 {[%clk 0:02:11]}  Rc8 {[%clk 0:01:44]} 18. a4 {[%clk 0:02:07]}  g6 {[%clk 0:01:37]} 19. Ra2 {[%clk 0:01:55]}  Bd8 {[%clk 0:01:33]} 20. Re2 {[%clk 0:01:45]}  Bf6 {[%clk 0:01:30]} 21. Rd6 {[%clk 0:01:45]}  Qe7 {[%clk 0:01:28]} 22. Re3 {[%clk 0:01:09]}  Kg7 {[%clk 0:01:28]} 23. Na3 {[%clk 0:01:03]}  Kg8 {[%clk 0:01:15]} 24. Nc2 {[%clk 0:00:53]}  Bg7 {[%clk 0:01:00]} 25. Nb4 {[%clk 0:00:30]}  Qg5 {[%clk 0:00:56]} 26. Nc2 {[%clk 0:00:04]}  Qc5 {[%clk 0:00:51]} 27. Re2 {[%clk 0:00:03]}  Bf8 {[%clk 0:00:51]} 28. Rd8 {[%clk 0:00:03]}  a6 {[%clk 0:00:42]} 29. Rxc8 {[%clk 0:00:03]}  Qxc8 {[%clk 0:00:43]} 30. Nd4 {[%clk 0:00:03]}  Bd7 {[%clk 0:00:38]} 31. Nf3 {[%clk 0:00:04]}  b5 {[%clk 0:00:35]} 32. Ne5 {[%clk 0:00:03]}  Be6 {[%clk 0:00:35]} 33. axb5 {[%clk 0:00:04]}  axb5 {[%clk 0:00:35]} 34. Rd2 {[%clk 0:00:04]}  Qc5 {[%clk 0:00:29]} 35. Nd7 {[%clk 0:00:03]}  Qf5 {[%clk 0:00:23]} 36. Nxf8 {[%clk 0:00:03]}  Kxf8 {[%clk 0:00:24]} 37. Rd8+ {[%clk 0:00:03]}  Kg7 {[%clk 0:00:25]} 38. Qd4+ {[%clk 0:00:03]}  Kh6 {[%clk 0:00:24]} 39. Qh4+ {[%clk 0:00:03]}  Kg7 {[%clk 0:00:23]} 40. Qd4+ {[%clk 0:00:04]}  Kh6 {[%clk 0:00:23]} 41. f3 {[%clk 0:00:03]}  Qb1+ {[%clk 0:00:17]} 42. Kh2 {[%clk 0:00:04]}  Qf5 {[%clk 0:00:18]} 43. Rd6 {[%clk 0:00:04]}  g5 {[%clk 0:00:14]} 44. Rb6 {[%clk 0:00:04]}  Kg6 {[%clk 0:00:12]} 45. Kh1 {[%clk 0:00:03]}  Qb1+ {[%clk 0:00:11]} 46. Kh2 {[%clk 0:00:04]}  Qf5 {[%clk 0:00:12]} 47. Rb7 {[%clk 0:00:03]}  h5 {[%clk 0:00:12]} 48. Rb6 {[%clk 0:00:03]}  h4 {[%clk 0:00:10]} 49. Qe4 {[%clk 0:00:03]}  Qxe4 {[%clk 0:00:06]} 50. fxe4 {[%clk 0:00:04]}  Kf6 {[%clk 0:00:07]} 51. Rxb5 {[%clk 0:00:05]}  Kg6 {[%clk 0:00:07]} 52. Rc5 {[%clk 0:00:05]}  Kf6 {[%clk 0:00:08]} 53. Kg1 {[%clk 0:00:05]}  Ke7 {[%clk 0:00:08]} 54. Rxg5 {[%clk 0:00:05]}  Kf6 {[%clk 0:00:06]} 55. Rh5 {[%clk 0:00:05]} 1-0


[Site "https://www.chess.com"]

[Event "Titled Tuesday Blitz April 11 Early 2023"]
[White "Amilal Munkhdalai"]
[Black "Svane, Rasmus"]
[WhiteFideId "4903250"]
[BlackFideId "4657101"]
[WhiteElo "2293"]
[BlackElo "2597"]
[Result "0-1"]
[Round "04"]
[TimeControl "180+2"]
[Date "2023.04.11"]
[WhiteClock "0:00:15"]
[BlackClock "0:00:09"]

1. e4 {[%clk 0:03:00]}  c6 {[%clk 0:03:00]} 2. d4 {[%clk 0:02:58]}  d5 {[%clk 0:03:01]} 3. exd5 {[%clk 0:02:59]}  cxd5 {[%clk 0:03:02]} 4. Bd3 {[%clk 0:02:59]}  Nc6 {[%clk 0:03:02]} 5. c3 {[%clk 0:02:59]}  Nf6 {[%clk 0:03:02]} 6. h3 {[%clk 0:02:59]}  g6 {[%clk 0:02:59]} 7. Nf3 {[%clk 0:02:59]}  Bf5 {[%clk 0:03:00]} 8. Bxf5 {[%clk 0:02:59]}  gxf5 {[%clk 0:03:00]} 9. O-O {[%clk 0:02:56]}  e6 {[%clk 0:03:00]} 10. Bg5 {[%clk 0:02:55]}  Be7 {[%clk 0:02:59]} 11. Bxf6 {[%clk 0:02:54]}  Bxf6 {[%clk 0:03:00]} 12. Qe2 {[%clk 0:02:54]}  Qc7 {[%clk 0:02:58]} 13. Re1 {[%clk 0:02:54]}  Rg8 {[%clk 0:02:57]} 14. Nbd2 {[%clk 0:02:54]}  O-O-O {[%clk 0:02:48]} 15. Ne5 {[%clk 0:02:35]}  Rg7 {[%clk 0:02:30]} 16. Nxc6 {[%clk 0:02:21]}  Qxc6 {[%clk 0:02:31]} 17. Kh1 {[%clk 0:02:15]}  Rdg8 {[%clk 0:02:30]} 18. Rg1 {[%clk 0:02:13]}  Kb8 {[%clk 0:02:18]} 19. Nf3 {[%clk 0:02:12]}  Qd6 {[%clk 0:02:16]} 20. Rae1 {[%clk 0:02:08]}  Rc8 {[%clk 0:02:14]} 21. Ne5 {[%clk 0:02:07]}  Bxe5 {[%clk 0:02:14]} 22. Qxe5 {[%clk 0:02:07]}  Qxe5 {[%clk 0:02:14]} 23. Rxe5 {[%clk 0:02:08]}  h5 {[%clk 0:02:06]} 24. g3 {[%clk 0:02:03]}  Kc7 {[%clk 0:02:05]} 25. Rge1 {[%clk 0:01:58]}  Kd6 {[%clk 0:02:05]} 26. h4 {[%clk 0:01:56]}  Rg4 {[%clk 0:02:03]} 27. R5e3 {[%clk 0:01:51]}  f4 {[%clk 0:01:52]} 28. Rf3 {[%clk 0:01:50]}  fxg3 {[%clk 0:01:39]} 29. fxg3 {[%clk 0:01:48]}  f5 {[%clk 0:01:39]} 30. Kg2 {[%clk 0:01:38]}  b5 {[%clk 0:01:39]} 31. Rfe3 {[%clk 0:01:32]}  Re4 {[%clk 0:01:38]} 32. Rxe4 {[%clk 0:01:29]}  dxe4 {[%clk 0:01:39]} 33. Rc1 {[%clk 0:01:24]}  a5 {[%clk 0:01:38]} 34. Kf2 {[%clk 0:01:19]}  Kd5 {[%clk 0:01:37]} 35. Ke3 {[%clk 0:01:16]}  Rc7 {[%clk 0:01:18]} 36. b3 {[%clk 0:01:16]}  Rc8 {[%clk 0:01:17]} 37. Rc2 {[%clk 0:01:13]}  e5 {[%clk 0:01:15]} 38. dxe5 {[%clk 0:00:50]}  Kxe5 {[%clk 0:01:16]} 39. c4 {[%clk 0:00:38]}  bxc4 {[%clk 0:01:17]} 40. Rxc4 {[%clk 0:00:38]}  Rxc4 {[%clk 0:01:07]} 41. bxc4 {[%clk 0:00:38]}  a4 {[%clk 0:01:07]} 42. a3 {[%clk 0:00:38]}  Ke6 {[%clk 0:00:19]} 43. Kd4 {[%clk 0:00:37]}  Kd6 {[%clk 0:00:19]} 44. c5+ {[%clk 0:00:34]}  Kc6 {[%clk 0:00:10]} 45. Kc4 {[%clk 0:00:34]}  e3 {[%clk 0:00:11]} 46. Kd3 {[%clk 0:00:34]}  Kxc5 {[%clk 0:00:12]} 47. Kxe3 {[%clk 0:00:35]}  Kc4 {[%clk 0:00:12]} 48. Kf4 {[%clk 0:00:32]}  Kb3 {[%clk 0:00:13]} 49. Kxf5 {[%clk 0:00:33]}  Kxa3 {[%clk 0:00:13]} 50. g4 {[%clk 0:00:33]}  hxg4 {[%clk 0:00:12]} 51. h5 {[%clk 0:00:27]}  g3 {[%clk 0:00:12]} 52. h6 {[%clk 0:00:28]}  g2 {[%clk 0:00:13]} 53. h7 {[%clk 0:00:29]}  g1=Q {[%clk 0:00:13]} 54. h8=Q {[%clk 0:00:29]}  Qc5+ {[%clk 0:00:14]} 55. Ke4 {[%clk 0:00:28]}  Qc4+ {[%clk 0:00:14]} 56. Kf5 {[%clk 0:00:28]}  Qd5+ {[%clk 0:00:14]} 57. Kf4 {[%clk 0:00:28]}  Qd6+ {[%clk 0:00:11]} 58. Kf5 {[%clk 0:00:28]}  Kb4 {[%clk 0:00:10]} 59. Qb2+ {[%clk 0:00:27]}  Ka5 {[%clk 0:00:10]} 60. Qc3+ {[%clk 0:00:25]}  Kb5 {[%clk 0:00:11]} 61. Qb2+ {[%clk 0:00:21]}  Qb4 {[%clk 0:00:11]} 62. Qe2+ {[%clk 0:00:22]}  Qc4 {[%clk 0:00:11]} 63. Qe8+ {[%clk 0:00:22]}  Qc6 {[%clk 0:00:11]} 64. Qb8+ {[%clk 0:00:21]}  Kc4 {[%clk 0:00:10]} 65. Qf4+ {[%clk 0:00:17]}  Kb3 {[%clk 0:00:08]} 66. Qe3+ {[%clk 0:00:16]}  Qc3 {[%clk 0:00:08]} 67. Qe6+ {[%clk 0:00:16]}  Qc4 {[%clk 0:00:09]} 68. Qb6+ {[%clk 0:00:16]}  Kc2 {[%clk 0:00:09]} 69. Qf2+ {[%clk 0:00:15]}  Kb1 {[%clk 0:00:09]} 70. Qe1+ {[%clk 0:00:15]}  Kb2 {[%clk 0:00:09]} 71. Qf2+ {[%clk 0:00:15]}  Qc2+ {[%clk 0:00:09]} 0-1


[Site "https://www.chess.com"]

[Event "Titled Tuesday Blitz April 11 Early 2023"]
[White "Drygalov, Andrey"]
[Black "Risteski, Emil"]
[WhiteFideId "24171735"]
[BlackFideId "15005267"]
[WhiteElo "2466"]
[BlackElo "2251"]
[Result "1-0"]
[Round "04"]
[TimeControl "180+2"]
[Date "2023.04.11"]
[WhiteClock "0:00:17"]
[BlackClock "0:00:04"]

1. e4 {[%clk 0:03:00]}  c5 {[%clk 0:03:00]} 2. Nf3 {[%clk 0:03:01]}  e6 {[%clk 0:03:00]} 3. d4 {[%clk 0:03:01]}  cxd4 {[%clk 0:03:01]} 4. Nxd4 {[%clk 0:03:01]}  Nf6 {[%clk 0:03:02]} 5. Nc3 {[%clk 0:03:02]}  Nc6 {[%clk 0:03:03]} 6. Ndb5 {[%clk 0:03:02]}  Bc5 {[%clk 0:03:01]} 7. Bf4 {[%clk 0:03:02]}  O-O {[%clk 0:03:00]} 8. Bc7 {[%clk 0:03:02]}  Qe7 {[%clk 0:03:01]} 9. Bd6 {[%clk 0:03:02]}  Bxd6 {[%clk 0:03:01]} 10. Qxd6 {[%clk 0:03:03]}  Qd8 {[%clk 0:03:01]} 11. O-O-O {[%clk 0:02:58]}  a6 {[%clk 0:03:01]} 12. Nd4 {[%clk 0:02:58]}  Ne7 {[%clk 0:03:01]} 13. h4 {[%clk 0:02:57]}  b5 {[%clk 0:03:00]} 14. h5 {[%clk 0:02:55]}  Ne8 {[%clk 0:02:57]} 15. Qh2 {[%clk 0:02:54]}  b4 {[%clk 0:02:53]} 16. Nce2 {[%clk 0:02:53]}  Bb7 {[%clk 0:02:50]} 17. f3 {[%clk 0:02:52]}  Qa5 {[%clk 0:02:49]} 18. Kb1 {[%clk 0:02:52]}  Qb6 {[%clk 0:02:44]} 19. h6 {[%clk 0:02:49]}  g6 {[%clk 0:02:43]} 20. Nb3 {[%clk 0:02:42]}  d6 {[%clk 0:02:40]} 21. Qg1 {[%clk 0:02:36]}  Qc7 {[%clk 0:02:31]} 22. Qd4 {[%clk 0:02:26]}  a5 {[%clk 0:02:26]} 23. Qd2 {[%clk 0:01:40]}  e5 {[%clk 0:02:18]} 24. Nbc1 {[%clk 0:01:33]}  d5 {[%clk 0:01:52]} 25. Ng3 {[%clk 0:01:32]}  d4 {[%clk 0:01:48]} 26. Nd3 {[%clk 0:01:23]}  Nd6 {[%clk 0:01:34]} 27. Nxe5 {[%clk 0:01:21]}  Nxe4 {[%clk 0:01:32]} 28. Nxe4 {[%clk 0:01:20]}  Bxe4 {[%clk 0:01:29]} 29. Ng4 {[%clk 0:01:04]}  Bf5 {[%clk 0:01:19]} 30. Nf6+ {[%clk 0:00:59]}  Kh8 {[%clk 0:01:18]} 31. g4 {[%clk 0:00:59]}  Be6 {[%clk 0:01:12]} 32. Qxd4 {[%clk 0:00:52]}  Nc6 {[%clk 0:01:11]} 33. Qc5 {[%clk 0:00:47]}  Qe5 {[%clk 0:01:04]} 34. Qxe5 {[%clk 0:00:43]}  Nxe5 {[%clk 0:01:05]} 35. Be2 {[%clk 0:00:43]}  a4 {[%clk 0:00:56]} 36. f4 {[%clk 0:00:43]}  Nc6 {[%clk 0:00:43]} 37. b3 {[%clk 0:00:41]}  axb3 {[%clk 0:00:42]} 38. axb3 {[%clk 0:00:38]}  Ra3 {[%clk 0:00:32]} 39. Bf3 {[%clk 0:00:38]}  Rfa8 {[%clk 0:00:31]} 40. Kc1 {[%clk 0:00:38]}  Ra1+ {[%clk 0:00:29]} 41. Kd2 {[%clk 0:00:38]}  Rd8+ {[%clk 0:00:28]} 42. Ke3 {[%clk 0:00:35]}  Raxd1 {[%clk 0:00:16]} 43. Rxd1 {[%clk 0:00:36]}  Rxd1 {[%clk 0:00:17]} 44. Bxd1 {[%clk 0:00:35]}  Ne7 {[%clk 0:00:17]} 45. Kd4 {[%clk 0:00:31]}  g5 {[%clk 0:00:13]} 46. f5 {[%clk 0:00:29]}  Bc8 {[%clk 0:00:07]} 47. Kc5 {[%clk 0:00:29]}  Bb7 {[%clk 0:00:04]} 48. Kxb4 {[%clk 0:00:28]}  Nc6+ {[%clk 0:00:04]} 49. Kc5 {[%clk 0:00:28]}  Ne5 {[%clk 0:00:05]} 50. Kd6 {[%clk 0:00:25]}  Nf3 {[%clk 0:00:03]} 51. Bxf3 {[%clk 0:00:25]}  Bxf3 {[%clk 0:00:04]} 52. c4 {[%clk 0:00:21]}  Bd1 {[%clk 0:00:02]} 53. b4 {[%clk 0:00:21]}  Ba4 {[%clk 0:00:01]} 54. Ne4 {[%clk 0:00:18]}  Bb3 {[%clk 0:00:01]} 55. c5 {[%clk 0:00:17]}  f6 {[%clk 0:00:01]} 56. Nxf6 {[%clk 0:00:15]}  Bc4 {[%clk 0:00:01]} 57. Ne4 {[%clk 0:00:15]}  Bb3 {[%clk 0:00:01]} 58. Nxg5 {[%clk 0:00:15]}  Ba2 {[%clk 0:00:02]} 59. c6 {[%clk 0:00:15]}  Bb3 {[%clk 0:00:03]} 60. c7 {[%clk 0:00:16]}  Bg8 {[%clk 0:00:03]} 61. Nf7+ {[%clk 0:00:16]}  Bxf7 {[%clk 0:00:03]} 62. c8=Q+ {[%clk 0:00:16]}  Bg8 {[%clk 0:00:04]} 63. Qc3# {[%clk 0:00:17]} 1-0


[Site "https://www.chess.com"]

[Event "Titled Tuesday Blitz April 11 Early 2023"]
[White "Martic, Ivan"]
[Black "Timofeev, Artyom"]
[WhiteFideId "929301"]
[BlackFideId "4140419"]
[WhiteElo "2360"]
[BlackElo "2586"]
[Result "0-1"]
[Round "04"]
[TimeControl "180+2"]
[Date "2023.04.11"]
[WhiteClock "0:00:07"]
[BlackClock "0:00:16"]

1. d4 {[%clk 0:03:00]}  Nf6 {[%clk 0:01:22]} 2. Bg5 {[%clk 0:03:00]}  e6 {[%clk 0:01:21]} 3. e4 {[%clk 0:02:58]}  h6 {[%clk 0:01:21]} 4. Bxf6 {[%clk 0:02:58]}  Qxf6 {[%clk 0:01:21]} 5. c3 {[%clk 0:02:58]}  d5 {[%clk 0:01:21]} 6. e5 {[%clk 0:02:58]}  Qd8 {[%clk 0:01:21]} 7. Bd3 {[%clk 0:02:57]}  c5 {[%clk 0:01:21]} 8. Nf3 {[%clk 0:02:56]}  Nc6 {[%clk 0:01:21]} 9. O-O {[%clk 0:02:51]}  Be7 {[%clk 0:01:21]} 10. Re1 {[%clk 0:02:38]}  Qb6 {[%clk 0:01:20]} 11. Re2 {[%clk 0:02:26]}  Bd7 {[%clk 0:01:20]} 12. dxc5 {[%clk 0:02:24]}  Bxc5 {[%clk 0:01:19]} 13. b4 {[%clk 0:02:14]}  Be7 {[%clk 0:01:18]} 14. Nbd2 {[%clk 0:02:07]}  O-O {[%clk 0:01:17]} 15. b5 {[%clk 0:01:53]}  Na5 {[%clk 0:01:16]} 16. a4 {[%clk 0:01:53]}  Rac8 {[%clk 0:01:16]} 17. Rc1 {[%clk 0:01:46]}  a6 {[%clk 0:01:16]} 18. c4 {[%clk 0:01:39]}  dxc4 {[%clk 0:01:12]} 19. Nxc4 {[%clk 0:01:39]}  Nxc4 {[%clk 0:01:12]} 20. Bxc4 {[%clk 0:01:39]}  Rfd8 {[%clk 0:01:12]} 21. Qb3 {[%clk 0:01:35]}  axb5 {[%clk 0:01:11]} 22. axb5 {[%clk 0:01:34]}  Be8 {[%clk 0:01:10]} 23. Rec2 {[%clk 0:01:30]}  Ra8 {[%clk 0:01:09]} 24. Ra2 {[%clk 0:01:13]}  Rxa2 {[%clk 0:01:07]} 25. Qxa2 {[%clk 0:01:14]}  Qc5 {[%clk 0:01:04]} 26. Qb1 {[%clk 0:01:02]}  Rc8 {[%clk 0:01:01]} 27. Rc2 {[%clk 0:00:56]}  Qb6 {[%clk 0:00:54]} 28. h3 {[%clk 0:00:52]}  Rd8 {[%clk 0:00:52]} 29. Rc1 {[%clk 0:00:38]}  Bc5 {[%clk 0:00:49]} 30. Qc2 {[%clk 0:00:36]}  Ba3 {[%clk 0:00:49]} 31. Ra1 {[%clk 0:00:34]}  Be7 {[%clk 0:00:48]} 32. Qe2 {[%clk 0:00:32]}  Qc5 {[%clk 0:00:45]} 33. Bd3 {[%clk 0:00:28]}  g6 {[%clk 0:00:45]} 34. Rb1 {[%clk 0:00:26]}  b6 {[%clk 0:00:44]} 35. Nh2 {[%clk 0:00:24]}  Kg7 {[%clk 0:00:43]} 36. Ng4 {[%clk 0:00:24]}  Qd4 {[%clk 0:00:39]} 37. Be4 {[%clk 0:00:20]}  h5 {[%clk 0:00:36]} 38. Nf6 {[%clk 0:00:18]}  Bxf6 {[%clk 0:00:35]} 39. exf6+ {[%clk 0:00:18]}  Qxf6 {[%clk 0:00:35]} 40. Bc6 {[%clk 0:00:17]}  Qd4 {[%clk 0:00:32]} 41. Qc2 {[%clk 0:00:14]}  Rc8 {[%clk 0:00:31]} 42. Rd1 {[%clk 0:00:14]}  Qe5 {[%clk 0:00:30]} 43. Rc1 {[%clk 0:00:13]}  Rc7 {[%clk 0:00:28]} 44. Qd2 {[%clk 0:00:12]}  Bxc6 {[%clk 0:00:24]} 45. bxc6 {[%clk 0:00:11]}  b5 {[%clk 0:00:25]} 46. Qb4 {[%clk 0:00:10]}  Qd5 {[%clk 0:00:21]} 47. Qc3+ {[%clk 0:00:10]}  e5 {[%clk 0:00:21]} 48. h4 {[%clk 0:00:10]}  b4 {[%clk 0:00:19]} 49. Qxb4 {[%clk 0:00:09]}  Rxc6 {[%clk 0:00:19]} 50. Rxc6 {[%clk 0:00:08]}  Qxc6 {[%clk 0:00:19]} 51. g3 {[%clk 0:00:07]}  Qd5 {[%clk 0:00:19]} 52. Qe7 {[%clk 0:00:06]}  Qd4 {[%clk 0:00:19]} 53. Qe8 {[%clk 0:00:05]}  Qc5 {[%clk 0:00:19]} 54. Qd7 {[%clk 0:00:05]}  Qd4 {[%clk 0:00:18]} 55. Qe8 {[%clk 0:00:05]}  Qe4 {[%clk 0:00:19]} 56. Qe7 {[%clk 0:00:05]}  Qf5 {[%clk 0:00:19]} 57. Qe8 {[%clk 0:00:05]}  g5 {[%clk 0:00:19]} 58. hxg5 {[%clk 0:00:05]}  Qxg5 {[%clk 0:00:20]} 59. Qd7 {[%clk 0:00:05]}  h4 {[%clk 0:00:19]} 60. Kg2 {[%clk 0:00:05]}  hxg3 {[%clk 0:00:19]} 61. fxg3 {[%clk 0:00:06]}  Qg6 {[%clk 0:00:17]} 62. Qd5 {[%clk 0:00:06]}  Qf5 {[%clk 0:00:17]} 63. Qd6 {[%clk 0:00:05]}  Qe4+ {[%clk 0:00:17]} 64. Kf2 {[%clk 0:00:05]}  Qd4+ {[%clk 0:00:17]} 65. Qxd4 {[%clk 0:00:05]}  exd4 {[%clk 0:00:17]} 66. Ke2 {[%clk 0:00:06]}  Kf6 {[%clk 0:00:16]} 67. Kd3 {[%clk 0:00:07]}  Ke5 {[%clk 0:00:16]} 68. g4 {[%clk 0:00:06]}  f6 {[%clk 0:00:16]} 69. Kd2 {[%clk 0:00:05]}  Kf4 {[%clk 0:00:16]} 70. Kd3 {[%clk 0:00:05]}  Kxg4 {[%clk 0:00:17]} 71. Kxd4 {[%clk 0:00:06]}  f5 {[%clk 0:00:16]} 72. Ke3 {[%clk 0:00:06]}  Kg3 {[%clk 0:00:16]} 73. Ke2 {[%clk 0:00:07]}  f4 {[%clk 0:00:16]} 74. Kf1 {[%clk 0:00:05]}  Kf3 {[%clk 0:00:16]} 75. Ke1 {[%clk 0:00:06]}  Kg2 {[%clk 0:00:16]} 76. Kd2 {[%clk 0:00:06]}  f3 {[%clk 0:00:16]} 77. Ke3 {[%clk 0:00:07]}  f2 {[%clk 0:00:16]} 0-1


[Site "https://www.chess.com"]

[Event "Titled Tuesday Blitz April 11 Early 2023"]
[White "Rodshtein, Maxim"]
[Black "Grot, Blazej"]
[WhiteFideId "2806851"]
[BlackFideId "21835845"]
[WhiteElo "2555"]
[BlackElo "1823"]
[Result "1-0"]
[Round "04"]
[TimeControl "180+2"]
[Date "2023.04.11"]
[WhiteClock "0:00:10"]
[BlackClock "0:00:01"]

1. b3 {[%clk 0:03:00]}  Nf6 {[%clk 0:02:57]} 2. Bb2 {[%clk 0:03:01]}  g6 {[%clk 0:02:58]} 3. c4 {[%clk 0:03:00]}  Bg7 {[%clk 0:02:58]} 4. g3 {[%clk 0:03:00]}  c5 {[%clk 0:02:58]} 5. Bg2 {[%clk 0:03:00]}  d6 {[%clk 0:02:57]} 6. Nf3 {[%clk 0:02:58]}  O-O {[%clk 0:02:57]} 7. O-O {[%clk 0:02:56]}  e5 {[%clk 0:02:54]} 8. d3 {[%clk 0:02:56]}  Nc6 {[%clk 0:02:54]} 9. Nc3 {[%clk 0:02:55]}  Be6 {[%clk 0:02:53]} 10. Ng5 {[%clk 0:02:53]}  Bf5 {[%clk 0:02:51]} 11. e3 {[%clk 0:02:47]}  h6 {[%clk 0:02:42]} 12. Nge4 {[%clk 0:02:46]}  Nxe4 {[%clk 0:02:41]} 13. Nxe4 {[%clk 0:02:43]}  Qd7 {[%clk 0:02:37]} 14. a3 {[%clk 0:02:42]}  a5 {[%clk 0:02:32]} 15. Qd2 {[%clk 0:02:39]}  Rfd8 {[%clk 0:02:31]} 16. Rfe1 {[%clk 0:02:29]}  Bh3 {[%clk 0:02:28]} 17. Bh1 {[%clk 0:02:27]}  Ne7 {[%clk 0:02:06]} 18. Nc3 {[%clk 0:02:26]}  h5 {[%clk 0:01:59]} 19. Rac1 {[%clk 0:02:19]}  h4 {[%clk 0:01:59]} 20. Na4 {[%clk 0:02:19]}  Ra6 {[%clk 0:01:55]} 21. d4 {[%clk 0:02:17]}  hxg3 {[%clk 0:01:52]} 22. hxg3 {[%clk 0:02:17]}  Qc8 {[%clk 0:01:39]} 23. Rcd1 {[%clk 0:01:53]}  Rd7 {[%clk 0:01:23]} 24. Bc3 {[%clk 0:01:46]}  exd4 {[%clk 0:01:04]} 25. exd4 {[%clk 0:01:46]}  Nc6 {[%clk 0:01:04]} 26. d5 {[%clk 0:00:37]}  Nd4 {[%clk 0:01:00]} 27. Qe3 {[%clk 0:00:31]}  Rd8 {[%clk 0:00:49]} 28. Bxd4 {[%clk 0:00:28]}  Bxd4 {[%clk 0:00:47]} 29. Qf4 {[%clk 0:00:28]}  Qf5 {[%clk 0:00:40]} 30. Qxf5 {[%clk 0:00:23]}  Bxf5 {[%clk 0:00:41]} 31. Be4 {[%clk 0:00:23]}  Bg4 {[%clk 0:00:36]} 32. Rb1 {[%clk 0:00:17]}  Bd7 {[%clk 0:00:35]} 33. Bd3 {[%clk 0:00:17]}  Kf8 {[%clk 0:00:33]} 34. Kg2 {[%clk 0:00:17]}  Kg7 {[%clk 0:00:29]} 35. Nb2 {[%clk 0:00:14]}  a4 {[%clk 0:00:27]} 36. Nxa4 {[%clk 0:00:14]}  Bxa4 {[%clk 0:00:26]} 37. bxa4 {[%clk 0:00:15]}  Rd7 {[%clk 0:00:22]} 38. Bc2 {[%clk 0:00:14]}  Ra8 {[%clk 0:00:20]} 39. Rb6 {[%clk 0:00:14]}  Ra6 {[%clk 0:00:18]} 40. Rb5 {[%clk 0:00:13]}  Be5 {[%clk 0:00:15]} 41. Reb1 {[%clk 0:00:12]}  Ra7 {[%clk 0:00:14]} 42. a5 {[%clk 0:00:12]}  Bc3 {[%clk 0:00:13]} 43. a6 {[%clk 0:00:08]}  Rxa6 {[%clk 0:00:12]} 44. a4 {[%clk 0:00:08]}  Ra7 {[%clk 0:00:10]} 45. R1b3 {[%clk 0:00:07]}  Bd4 {[%clk 0:00:10]} 46. Rf3 {[%clk 0:00:07]}  Re7 {[%clk 0:00:10]} 47. Kf1 {[%clk 0:00:08]}  Rd7 {[%clk 0:00:09]} 48. Rf4 {[%clk 0:00:08]}  Be5 {[%clk 0:00:09]} 49. Re4 {[%clk 0:00:08]}  Bd4 {[%clk 0:00:08]} 50. g4 {[%clk 0:00:09]}  Bf6 {[%clk 0:00:07]} 51. f4 {[%clk 0:00:09]}  Re7 {[%clk 0:00:07]} 52. g5 {[%clk 0:00:08]}  Bxg5 {[%clk 0:00:04]} 53. fxg5 {[%clk 0:00:07]}  Rxe4 {[%clk 0:00:05]} 54. Bxe4 {[%clk 0:00:08]}  Rxa4 {[%clk 0:00:05]} 55. Bd3 {[%clk 0:00:09]}  Ra3 {[%clk 0:00:04]} 56. Ke2 {[%clk 0:00:07]}  Ra2+ {[%clk 0:00:03]} 57. Kf3 {[%clk 0:00:08]}  Ra3 {[%clk 0:00:01]} 58. Ke3 {[%clk 0:00:08]}  Ra7 {[%clk 0:00:02]} 59. Rb6 {[%clk 0:00:08]}  Kf8 {[%clk 0:00:02]} 60. Rxd6 {[%clk 0:00:08]}  Ke7 {[%clk 0:00:03]} 61. Rb6 {[%clk 0:00:08]}  Ra1 {[%clk 0:00:02]} 62. Rxb7+ {[%clk 0:00:08]}  Kd6 {[%clk 0:00:02]} 63. Rxf7 {[%clk 0:00:08]}  Re1+ {[%clk 0:00:03]} 64. Kd2 {[%clk 0:00:08]}  Rg1 {[%clk 0:00:02]} 65. Rf6+ {[%clk 0:00:09]}  Ke5 {[%clk 0:00:02]} 66. Kc3 {[%clk 0:00:10]}  Rxg5 {[%clk 0:00:01]} 67. Rxg6 {[%clk 0:00:10]}  Rxg6 {[%clk 0:00:01]} 68. Bxg6 {[%clk 0:00:09]}  Kd6 {[%clk 0:00:01]} 69. Kd3 {[%clk 0:00:09]}  Ke5 {[%clk 0:00:01]} 70. Ke3 {[%clk 0:00:10]} 1-0


[Site "https://www.chess.com"]